{"text_format":"1","workbook":"xlsx","n_sheets":21,"sheets":["Framside AUS","RENBlad Lavspent","RENBlad 1801","RENBlad 1804","RENBlad 1808","RENBlad 1809","RENBlad 1815","RENBlad 1833","RENBlad 1855","Traversskift med hjelpetravers","Skifte bendsling","Glassisolator skift","3-par stangmetoden for E-mast","AUS klasse.2 24 kV","AUS klasse.2 72,5 kV","AUS klasse.3 med teleskopmast","Tester AUS betjeningsstenger","Arbeidsplattform","Rengjøring","RENBlad 1701","D365 - vareliste"],"not_rendered":{"charts":0,"images":38,"macros":1,"external_links":0,"defined_names":0,"comments":4,"pivot_tables":0},"unopened":[],"bounds":{"document_bytes":16777216,"sheet_cells":100000,"rows_first":2000,"rows_last":500,"rows_between":2000,"halvings":0,"cell_chars":16384,"cell_head_chars":4096},"cells_cut":0,"cells_raw":0,"read":"whole","date_system":"1900"}

{"sheet":"Framside AUS","index":0,"n_rows":3,"n_cols":18,"rows_kept":3,"cut":false,"hidden":false,"merged":[[2,0,3,12],[2,13,3,19],[0,5,0,14]]}
[null,null,null,null,null,"Framside AUS produktvelger",null,null,null,null,null,null,null,null,null,null,null,"GUHU Versjon 1.0"]
[]
["Arbeidsprosedyrer for høyspent og lavspent",null,null,null,null,null,null,null,null,null,null,null,null,"Annet"]

{"sheet":"RENBlad Lavspent","index":1,"n_rows":43,"n_cols":7,"rows_kept":43,"cut":false,"hidden":false,"merged":[]}
["Posisjon ","Navn ","Antall ","Enhet ","Spesifikasjon ","Maks belastning [kN] / kommentar","Elnummer"]
[null,"Isolerende hansker",null,"stk.",null,"Isolerende hansker | Melbye AS"]
[null,"E-shark hjelmer",null,"stk.",null,"E.shark hjelmer | Melbye AS"]
[null,"Isolerende utstyr 1000 V",null,"stk.",null,"Isolerende utstyr 1000 V | Melbye AS"]
[null,"1000V Tildekningssett for linjer",null,"stk.",null,null,8880180]
[null,"Faseslange 1kV AUS utstyr 1m lang",null,"stk.",null,null,8880163]
[null,"Faseslange 1kV AUS utstyr 1,5m lang",null,"stk.",null,null,8880164]
[null,"Faseslange 1kV AUS utstyr 3m lang",null,"stk.",null,null,8880165]
[null,"Isolerende matte 1kV AUS utstyr med borrelås 0,66 x 0,36m",null,"stk.",null,null,8880159]
[null,"Isolerende matte 1kV AUS utstyr med borrelås 0,5 x 0,9m",null,"stk.",null,null,8880161]
[null,"Isolerende matte 1kV AUS utstyr med borrelås 0,8 x 1,2m",null,"stk.",null,null,8880162]
[null,"Tildekning isolator hatt 1kV AUS utstyr 110mm bred",null,"stk.",null,null,8880157]
[null,"Tildekning isolator hatt 1kV AUS utstyr 162mm bred",null,"stk.",null,null,8880158]
[null,"Isolatorkapsling",null,"stk.",null,null,8839471]
[null,"Isolerende endehette 1kV AUS utstyr for 3 til 10mm²",null,"stk.",null,null,8880166]
[null,"Isolerende endehette 1kV AUS utstyr for 6 til 35mm²",null,"stk.",null,null,8880167]
[null,"Isolerende endehette 1kV AUS utstyr for 20 til 70mm²",null,"stk.",null,null,8880168]
[null,"Isolerende endehette 1kV AUS utstyr for 30 til 100mm²",null,"stk.",null,null,8880169]
[null,"Isolerende endehette 1kV AUS utstyr for 240mm²",null,"stk.",null,null,8880170]
[null,"Endeisolering 1000V. Nr. 1",null,"stk.",null,null,8839769]
[null,"Endeisolering 1000V. Nr. 2",null,"stk.",null,null,8839770]
[null,"Endeisolering 1000V. Nr. 3",null,"stk.",null,null,8839771]
[null,"Endeisolering 1000V.L75/Ø10",null,"stk.",null,null,8839772]
[null,"Endeisolering 1000V.L100/Ø20",null,"stk.",null,null,8839773]
[null,"Endeisolering 1000V.L120/Ø30",null,"stk.",null,null,8839774]
[null,"Endeisolering 1000V 50x155mm",null,"stk.",null,null,8853104]
[null,"Endeisolering 1000V 40x135mm",null,"stk.",null,null,8890014]
[null,"Festeklype for isolerende matte/faseslange 1kV",null,"stk.",null,null,8880176]
[null,"Festeklemme for avdekning 1000V 80mm",null,"stk.",null,null,8839775]
[null,"Festeklemme for avdekning 1000V 160mm",null,"stk.",null,null,8839776]
[null,"Isolerende gulvmatte 1x1 m LxBxH=1000x1000x3mm halogenfri",null,"stk.",null,null,8800587]
[null,"Isolerende gulvmatte 10x1 m LxBxH = 10mx1mx3mm halogenfri",null,"stk.",null,null,8839470]
[null,"Avdekning 1000V. 600x600x1,6",null,"stk.",null,null,8839765]
[null,"Avdekning 1000V. 1000x1000x1,6",null,"stk.",null,null,8839766]
[null,"Avdekning 1000V. 1200x1200x1,6",null,"stk.",null,null,8839767]
[null,"Avdekning 1000V. 10mx1mx1,6",null,"stk.",null,null,8839768]
[]
[null,"Husk rengjøring! ",null,null,null,"Rengjøring for AUS utstyr | Melbye AS"]
[null,"Renseserviett 30stk i eske for isolerstenger og AUS utstyr",null,null,null,null,1835693]
[null,"Renseserviett 72stk i dispenser boks for rengjøring av AUS utstyr",null,null,null,null,1835696]
[null,"Rensespray for rengjøring av AUS utstyr",null,null,null,null,1835697]
[null,"Påfyll flaske 3,8 liter for rensespray",null,null,null,null,1835698]
[null,"Påfyll spann 18,9 liter for rensespray",null,null,null,null,1835699]

{"sheet":"RENBlad 1801","index":2,"n_rows":38,"n_cols":7,"rows_kept":38,"cut":false,"hidden":false,"merged":[]}
["Posisjon ","Navn ","Antall ","Enhet ","Spesifikasjon ","Maks belastning [kN] / kommentar","Elnummer"]
[1,"L.L =Lineløfter (dim 6 cm) ","1","stk. ","490 cm ",2.4,8871136]
[1,"L.L =Lineløfter (dim 6 cm) ",1,"stk. ","420 cm ",3,8871136]
[1,"L.L =Lineløfter (dim 6 cm) ",1,"stk. ","420 / 360 cm ","3,00 / 3,85 ",8871137]
[2,"L.H =Lineholder (dim 4 cm) ","2","stk. ","360 / 300 cm ","6,7 (strekk) 1,00 / 1,12 (trykk)",8871141]
[2,"L.H =Lineholder  (dim 4 cm) ","1","stk. ","300 cm ","6,7 (strekk)  1,12 (trykk) ",8871141]
[null,"Stangisolator med klemme (3,8 cm) ",3,"stk. ","120 cm ",17.7,8871147]
[3,"Sadel for lineløfter og lineholder uten forlenger ","3","stk. ",null,4.4000000000000004,"8871151/8871155"]
[4,"Sadel for lineløfter og lineholder med forlenger ","3","stk. ",null,3.5,"8871153/8871162"]
[null,"Sadel med taufester ",1,"stk. ",null,4.4000000000000004,8852520]
[5,"Tau taljer ",3,"stk. ",null,null,8871154]
[6,"Sikkerhetsmerke ","1 (2) ","stk. ",null,null,"Teip/Borrelås etc."]
[null,"Tau til stangisolator ",3,"stk. ",null,null,8871211]
[null,"Strekkjekk til tau m/  stangisolator ",3,"stk. ",null,null,8871186]
[null,"Klostang ",1,"stk. ",null,null,"8871064/8871100/8871125"]
[null,"Universal verktøystang ",2,"stk. ",null,null,"8871095/8871149"]
[null,"AUS-saks ",1,"stk. ",null,null,"8871093/8871189/8871210"]
[null,"Håndline ",1,"stk. ",null,null,8871158]
[null,"Bendsleblad ",2,"stk. ",null,null,8871109]
[null,"Starter/ krok ",1,"stk. ",null,null,"8871119/8871199"]
[null,"Feste for provisoriske barduner ",3,"stk. ",null,null,"Normalt på nærliggende tre, bil, etc."]
[7,"Isolerskjermer for travers ","3","stk. ","Hardplast",null,8871222]
[null,"Tildekning for piggisolator 26,4 kV AUS utstyr - hardplast","3","stk. ","Hardplast","Alternativt for mer tildekning",8871226]
[null,"Tildekning for piggisolator 36,6 kV AUS utstyr - hardplast","3","stk. ","Hardplast","Alternativt for mer tildekning",8871221]
[null,"Faseslange 1,5m 26,4 kV med feste for klostang - hardplast","3/6","stk. ","Hardplast","Alternativt for mer tildekning",8880191]
[null,"Hel isolerduk med 6 hull 36 kV AUS utstyr - gummi","2/3","stk. ","Gummi","Alternativt mot hardplast",8870970]
[null,"Splitt isolerduk med 28 hull 36 kV AUS utstyr - gummi","1/2","stk. ","Gummi","Alternativt mot hardplast",8870971]
[null,"Roterende krok med ABC feste","1","stk. ","Sette på matter","Alternativt mot hardplast",8871184]
[]
[null,"Alternativt / reserveutstyr "]
[null,"AUS-teleskopmast ",1,"stk. ",null,2.5,9300335]
[]
[null,"Husk rengjøring! ",null,null,null,"Rengjøring for AUS utstyr | Melbye AS"]
[null,"Renseserviett 30stk i eske for isolerstenger og AUS utstyr",null,null,null,null,1835693]
[null,"Renseserviett 72stk i dispenser boks for rengjøring av AUS utstyr",null,null,null,null,1835696]
[null,"Rensespray for rengjøring av AUS utstyr",null,null,null,null,1835697]
[null,"Påfyll flaske 3,8 liter for rensespray",null,null,null,null,1835698]
[null,"Påfyll spann 18,9 liter for rensespray",null,null,null,null,1835699]

{"sheet":"RENBlad 1804","index":3,"n_rows":37,"n_cols":7,"rows_kept":37,"cut":false,"hidden":false,"merged":[]}
["Posisjon ","Navn ","Antall ","Enhet ","Spesifikasjon ","Maks belastning [kN] / kommentar","Elnummer"]
[1,"Hjelpetravers 3 meter lang for en lineløfter",1,"stk.","300 cm ",3.85,8871159]
[1,"Isolatorer med smekk klemme eller trinseklemme ",1,"stk.",null,null,8871185]
[null,"Stigbøyle med bøylefeste",2,"stk.",null,null,8871157]
[2,"L.L =Lineløfter (dim 6 cm) ",1,"stk. ","420 cm ",3,8871136]
[3,"L.L =Lineløfter (dim 6 cm) ",1,"stk. ","490 cm ",2.4,8871136]
[4,"L.H =Lineholder (dim 4 cm) ",1,"stk.","300 cm","6,7 (strekk) 1,12 (trykk) ",8871141]
[5,"Sadel fjærbelastet låseanordning med gaffel",1,"stk.",null,null,8871198]
[6,"Sadel for lineløfter m/ forlenger (6 cm) ",1,"stk.",null,3.5,8871162]
[7,"Sadel for lineløfter og lineholder med forlenger ",1,"stk. ",null,3.5,"8871153/8871162"]
[8,"Sadel fjærbelastet låseanordning med løftearm",1,"stk. ",null,4.4000000000000004,8871187]
[9,"Tautalje ",1,"stk.",null,5,8871154]
[10,"Sikkerhetsmerke ","1 (2) ","stk.",null,null,"Teip/Borrelås etc."]
[null,"Taustropp / sjakkel ",1,"stk.",null,"Min 2,5 kN ","Sjakkel/Taustropp mulig å skaffe på egenhånd - dette er kun for å få avstand fra lineholderen øye ved bruk av tautalje"]
[null,"Sadel med taufester ",1,"stk.",null,4.4000000000000004,8852520]
[11,"Isolerskjermer til travers ",3,"stk.","Hardplast",null,8871222]
[null,"Tildekning for piggisolator 26,4 kV AUS utstyr - hardplast",3,"stk.","Hardplast","Alternativt for mer tildekning",8871226]
[null,"Tildekning for piggisolator 36,6 kV AUS utstyr - hardplast",3,"stk.","Hardplast","Alternativt for mer tildekning",8871221]
[null,"Faseslange 1,5m 26,4 kV med feste for klostang - hardplast","3/6","stk.","Hardplast","Alternativt for mer tildekning",8880191]
[null,"Hel isolerduk med 6 hull 36 kV AUS utstyr - gummi","2/3","stk.","Gummi","Alternativt mot hardplast",8870970]
[null,"Splitt isolerduk med 28 hull 36 kV AUS utstyr - gummi","1/2","stk.","Gummi","Alternativt mot hardplast",8870971]
[null,"Roterende krok med ABC feste",1,"stk.","Sette på matter","Alternativt mot hardplast",8871184]
[null,"Universal verktøystang ",2,"stk.",null,null,"8871095/8871149"]
[null,"Klostang ",1,"stk.",null,null,"8871064/8871100/8871125"]
[null,"Starter/avbendslingskrok ",1,"stk.",null,null,"8871119/8871199"]
[null,"AUS-saks ",1,"stk.",null,null,"8871093/8871189/8871210"]
[null,"Håndline ",1,"stk.",null,null,8871158]
[null,"Bendsleblad ",2,"stk.",null,null,8871109]
[]
[null,"Alternativt / reserveutstyr "]
[]
[null,"Husk rengjøring! ",null,null,null,"Rengjøring for AUS utstyr | Melbye AS"]
[null,"Renseserviett 30stk i eske for isolerstenger og AUS utstyr",null,null,null,null,1835693]
[null,"Renseserviett 72stk i dispenser boks for rengjøring av AUS utstyr",null,null,null,null,1835696]
[null,"Rensespray for rengjøring av AUS utstyr",null,null,null,null,1835697]
[null,"Påfyll flaske 3,8 liter for rensespray",null,null,null,null,1835698]
[null,"Påfyll spann 18,9 liter for rensespray",null,null,null,null,1835699]

{"sheet":"RENBlad 1808","index":4,"n_rows":23,"n_cols":7,"rows_kept":23,"cut":false,"hidden":false,"merged":[]}
["Posisjon ","Navn ","Antall ","Enhet ","Spesifikasjon ","Maks belastning [kN] / kommentar","Elnummer"]
[1,"Isolerskjerm for stolper 1,80m - 30cm i diameter 36,6 kV - hardplast",2,"stk. ","Glatt",null,8880183]
[2,"Isolerskjerm for stolper 1,80m - 23cm i diameter 36,6 kV - hardplast",2,"stk. ","Med \"spor\"",null,8880184]
[2,"Isolerskjerm for stolper 1,80m - 30cm i diameter 36,6 kV - hardplast",2,"stk. ","Med \"spor\"",null,8880185]
[3,"Stolpelås for isolerskjerm for stolper",1,"stk. ",null,null,8872610]
[null,"Sikkerhetsmerke ","1 (2) ","stk. ",null,null,"Teip/Borrelås etc."]
[null,"Isolerskjermer til travers ","3","stk. ","Hardplast",null,8871222]
[null,"Tildekning for piggisolator 26,4 kV AUS utstyr - hardplast","3","stk. ","Hardplast","Alternativt for mer tildekning",8871226]
[null,"Tildekning for piggisolator 36,6 kV AUS utstyr - hardplast","3","stk. ","Hardplast","Alternativt for mer tildekning",8871221]
[null,"Faseslange 1,5m 26,4 kV med feste for klostang - hardplast","3/6","stk. ","Hardplast","Alternativt for mer tildekning",8880191]
[null,"Hel isolerduk med 6 hull 36 kV AUS utstyr - gummi","2/3","stk. ","Gummi","Alternativt mot hardplast",8870970]
[null,"Splitt isolerduk med 28 hull 36 kV AUS utstyr - gummi","1/2","stk. ","Gummi","Alternativt mot hardplast",8870971]
[null,"Roterende krok med ABC feste","1","stk. ","Sette på matter","Alternativt mot hardplast",8871184]
[null,"Universal verktøystang ",2,"stk. ",null,null,"8871095/8871149"]
[null,"Klostang ",1,"stk. ",null,null,"8871064/8871100/8871125"]
[null,"Alternativt / reserveutstyr "]
[]
[null,"Husk rengjøring! ",null,null,null,"Rengjøring for AUS utstyr | Melbye AS"]
[null,"Renseserviett 30stk i eske for isolerstenger og AUS utstyr",null,null,null,null,1835693]
[null,"Renseserviett 72stk i dispenser boks for rengjøring av AUS utstyr",null,null,null,null,1835696]
[null,"Rensespray for rengjøring av AUS utstyr",null,null,null,null,1835697]
[null,"Påfyll flaske 3,8 liter for rensespray",null,null,null,null,1835698]
[null,"Påfyll spann 18,9 liter for rensespray",null,null,null,null,1835699]

{"sheet":"RENBlad 1809","index":5,"n_rows":38,"n_cols":7,"rows_kept":38,"cut":false,"hidden":false,"merged":[]}
["Posisjon ","Navn ","Antall ","Enhet ","Spesifikasjon ","Maks belastning [kN] / kommentar","Elnummer"]
[1,"L.L =Lineløfter (dim 6 cm) ",1,"stk. ","490 cm ",2.4,8871136]
[1,"L.L =Lineløfter (dim 6 cm) ",1,"stk. ","420 cm ",3,8871136]
[1,"L.L =Lineløfter (dim 6 cm) ",1,"stk. ","420 / 360 cm ","3,00 / 3,85 ",8871137]
[2,"L.H =Lineholder (dim 4 cm) ",1,"stk. ","360 / 300 cm ","6,7 (strekk) 1,00 / 1,12 (trykk)",8871141]
[2,"L.H =Lineholder  (dim 4 cm) ",2,"stk. ","300 cm ","6,7 (strekk)  1,12 (trykk) ",8871141]
[3,"Stangisolator med klemme (3,8 cm) ",3,"stk. ","120 cm ",17.7,8871147]
[5,"Sadel for lineløfter og lineholder uten forlenger ",4,"stk. ",null,4.4000000000000004,"8871151/8871155"]
[4,"Sadel for lineløfter og lineholder med forlenger ",2,"stk. ",null,3.5,"8871153/8871162"]
[null,"Sadel med taufester ",1,"stk. ",null,4.4000000000000004,8852520]
[6,"Tau taljer ",3,"stk. ",null,null,8871154]
[7,"Sikkerhetsmerke ","1 (2) ","stk. ",null,null,"Teip/Borrelås etc."]
[null,"Tau til stangisolator ",3,"stk. ",null,null,8871211]
[null,"Strekkjekk til tau m/  stangisolator ",3,"stk. ",null,null,8871186]
[null,"Klostang ",1,"stk. ",null,null,"8871064/8871100/8871125"]
[null,"Universal verktøystang ",2,"stk. ",null,null,"8871095/8871149"]
[null,"AUS-saks ",1,"stk. ",null,null,"8871093/8871189/8871210"]
[null,"Håndline ",1,"stk. ",null,null,8871158]
[null,"Bendsleblad ",2,"stk. ",null,null,8871109]
[null,"Starter/ krok ",1,"stk. ",null,null,"8871119/8871199"]
[null,"Feste for provisoriske barduner ",3,"stk. ",null,null,"Normalt på nærliggende tre, bil, etc."]
[8,"Isolerskjermer for travers ","3","stk. ","Hardplast",null,8871222]
[null,"Tildekning for piggisolator 26,4 kV AUS utstyr - hardplast","3","stk. ","Hardplast","Alternativt for mer tildekning",8871226]
[null,"Tildekning for piggisolator 36,6 kV AUS utstyr - hardplast","3","stk. ","Hardplast","Alternativt for mer tildekning",8871221]
[null,"Faseslange 1,5m 26,4 kV med feste for klostang - hardplast","3/6","stk. ","Hardplast","Alternativt for mer tildekning",8880191]
[null,"Hel isolerduk med 6 hull 36 kV AUS utstyr - gummi","2/3","stk. ","Gummi","Alternativt mot hardplast",8870970]
[null,"Splitt isolerduk med 28 hull 36 kV AUS utstyr - gummi","1/2","stk. ","Gummi","Alternativt mot hardplast",8870971]
[null,"Roterende krok med ABC feste","1","stk. ","Sette på matter","Alternativt mot hardplast",8871184]
[]
[null,"Alternativt / reserveutstyr "]
[null,"AUS-teleskopmast ",1,"stk. ",null,2.5,9300335]
[]
[null,"Husk rengjøring! ",null,null,null,"Rengjøring for AUS utstyr | Melbye AS"]
[null,"Renseserviett 30stk i eske for isolerstenger og AUS utstyr",null,null,null,null,1835693]
[null,"Renseserviett 72stk i dispenser boks for rengjøring av AUS utstyr",null,null,null,null,1835696]
[null,"Rensespray for rengjøring av AUS utstyr",null,null,null,null,1835697]
[null,"Påfyll flaske 3,8 liter for rensespray",null,null,null,null,1835698]
[null,"Påfyll spann 18,9 liter for rensespray",null,null,null,null,1835699]

{"sheet":"RENBlad 1815","index":6,"n_rows":37,"n_cols":7,"rows_kept":37,"cut":false,"hidden":false,"merged":[]}
["Posisjon ","Navn ","Antall ","Enhet ","Spesifikasjon ","Maks belastning [kN] / kommentar","Elnummer"]
[1,"Hjelpetravers 3 meter lang for en lineløfter",1,"stk.","300 cm ",3.85,8871159]
[null,"T-klemme med isolator",1,"stk.",null,null,8871166]
[null,"Stigbøyle med bøylefeste",2,"stk.",null,null,8871157]
[2,"L.L =Lineløfter (dim 6 cm) ",1,"stk.","4,90 / 420 cm ","2,40/3,00 ",8871136]
[3,"L.H =Lineholder (dim 4 cm) ",2,"stk.","300 cm","6,7 (strekk) 1,12 (trykk) ",8871141]
[4,"Sadel for lineløfter m/ forlenger (6 cm) ",2,"stk.",null,3.5,8871162]
[5,"Tautalje ",1,"stk.",null,5,8871154]
[6,"Isolatorer med smekk klemme eller trinseklemme ",3,"stk.",null,null,8871185]
[null,"Lineholder med trinse uten feste",3,"stk.",null,"Alternativt med trinse",9303610]
[7,"Stangklemme med dobbelt  gaffelhode ",1,"stk.",null,2.7,8871163]
[8,"Sikkerhetsmerke ","1 (2) ","stk.",null,null,"Teip/Borrelås etc."]
[9,"Taustropp / sjakkel ",1,"stk.",null,"Min 2,5 kN ","Sjakkel/Taustropp mulig å skaffe på egenhånd - dette er kun for å få avstand fra lineholderen øye ved bruk av tautalje"]
[null,"Sadel med taufester ",1,"stk.",null,4.4000000000000004,8852520]
[10,"Isolerskjermer til travers ","3","stk.","Hardplast",null,8871222]
[null,"Tildekning for piggisolator 26,4 kV AUS utstyr - hardplast","3","stk.","Hardplast","Alternativt for mer tildekning",8871226]
[null,"Tildekning for piggisolator 36,6 kV AUS utstyr - hardplast","3","stk.","Hardplast","Alternativt for mer tildekning",8871221]
[null,"Faseslange 1,5m 26,4 kV med feste for klostang - hardplast","3/6","stk.","Hardplast","Alternativt for mer tildekning",8880191]
[null,"Hel isolerduk med 6 hull 36 kV AUS utstyr - gummi","2/3","stk.","Gummi","Alternativt mot hardplast",8870970]
[null,"Splitt isolerduk med 28 hull 36 kV AUS utstyr - gummi","1/2","stk.","Gummi","Alternativt mot hardplast",8870971]
[null,"Roterende krok med ABC feste","1","stk.","Sette på matter","Alternativt mot hardplast",8871184]
[null,"Universal verktøystang ",2,"stk.",null,null,"8871095/8871149"]
[null,"Klostang ",1,"stk.",null,null,"8871064/8871100/8871125"]
[null,"Starter/avbendslingskrok ",2,"stk.",null,null,"8871119/8871199"]
[null,"AUS-saks ",1,"stk.",null,null,"8871093/8871189/8871210"]
[null,"Håndline ",1,"stk.",null,null,8871158]
[null,"Bendsleblad ",2,"stk.",null,null,8871109]
[]
[null,"Alternativt / reserveutstyr "]
[null,"AUS-teleskopmast ",1,"stk.",null,2.5,9300335]
[]
[null,"Husk rengjøring! ",null,null,null,"Rengjøring for AUS utstyr | Melbye AS"]
[null,"Renseserviett 30stk i eske for isolerstenger og AUS utstyr",null,null,null,null,1835693]
[null,"Renseserviett 72stk i dispenser boks for rengjøring av AUS utstyr",null,null,null,null,1835696]
[null,"Rensespray for rengjøring av AUS utstyr",null,null,null,null,1835697]
[null,"Påfyll flaske 3,8 liter for rensespray",null,null,null,null,1835698]
[null,"Påfyll spann 18,9 liter for rensespray",null,null,null,null,1835699]

{"sheet":"RENBlad 1833","index":7,"n_rows":24,"n_cols":7,"rows_kept":24,"cut":false,"hidden":false,"merged":[]}
["Posisjon ","Navn ","Antall ","Enhet ","Spesifikasjon ","Maks belastning [kN] / kommentar","Elnummer"]
["1,2,3,4,5","Teleskopmast",1,"stk. ",null,2.5,9300335]
[6,"Sikkerhetsmerke ","1 (2) ","stk. ",null,null,"Teip/Borrelås etc."]
[7,"Isolerskjermer til travers ","3","stk. ","Hardplast",null,8871222]
[null,"Tildekning for piggisolator 26,4 kV AUS utstyr - hardplast","3","stk. ","Hardplast","Alternativt for mer tildekning",8871226]
[null,"Tildekning for piggisolator 36,6 kV AUS utstyr - hardplast","3","stk. ","Hardplast","Alternativt for mer tildekning",8871221]
[null,"Faseslange 1,5m 26,4 kV med feste for klostang - hardplast","3/6","stk. ","Hardplast","Alternativt for mer tildekning",8880191]
[null,"Hel isolerduk med 6 hull 36 kV AUS utstyr - gummi","2/3","stk. ","Gummi","Alternativt mot hardplast",8870970]
[null,"Splitt isolerduk med 28 hull 36 kV AUS utstyr - gummi","1/2","stk. ","Gummi","Alternativt mot hardplast",8870971]
[null,"Roterende krok med ABC feste","1","stk. ","Sette på matter","Alternativt mot hardplast",8871184]
[null,"Universal verktøystang ",2,"stk. ",null,null,"8871095/8871149"]
[null,"Klostang ",1,"stk. ",null,null,"8871064/8871100/8871125"]
[null,"Starter/avbendslingskrok ",2,"stk. ",null,null,"8871119/8871199"]
[null,"AUS-saks ",null,"stk. ",null,null,"8871093/8871189/8871210"]
[null,"Bendsleblad ",2,"stk. ",null,null,8871109]
[null,"AUS målestang - teleskopstang 1,7m-10,6m med metrisk skala",1,"stk. ",null,null,8870931]
[null,"Alternativt / reserveutstyr "]
[]
[null,"Husk rengjøring! ",null,null,null,"Rengjøring for AUS utstyr | Melbye AS"]
[null,"Renseserviett 30stk i eske for isolerstenger og AUS utstyr",null,null,null,null,1835693]
[null,"Renseserviett 72stk i dispenser boks for rengjøring av AUS utstyr",null,null,null,null,1835696]
[null,"Rensespray for rengjøring av AUS utstyr",null,null,null,null,1835697]
[null,"Påfyll flaske 3,8 liter for rensespray",null,null,null,null,1835698]
[null,"Påfyll spann 18,9 liter for rensespray",null,null,null,null,1835699]

{"sheet":"RENBlad 1855","index":8,"n_rows":18,"n_cols":7,"rows_kept":18,"cut":false,"hidden":false,"merged":[]}
["Posisjon ","Navn ","Antall ","Enhet ","Spesifikasjon ","Maks belastning [kN] / kommentar","Elnummer"]
[null,"Universal verktøystang ",2,"stk. ",null,null,"8871095/8871149"]
[null,"AUS målestang - teleskopstang 1,7m-10,6m med metrisk skala",1,"stk. ",null,null,8870931]
[null,"Klostang ",1,"stk. ",null,null,"8871064/8871100/8871125"]
[null,"Pipestang tilpasset momentnøkkel maks 100Nm",1,"stk. ",null,null,8871110]
[null,"Sikkerhetsmerke ","1 (2) ","stk. ",null,null,"Teip/Borrelås etc."]
[null,"Skralle med 1/2\" firkantfeste med ABC feste",1,"stk. ",null,null,8871023]
[null,"Fleksibel pipeholder med 1/2\" firkantfeste med fjær med ABC feste",1,"stk. ",null,null,8871102]
[null,"Arbeidsplattform i epoxyglass 2,4 meter lang",null,"stk. ",null,null,8853416]
[null,"Rekkverk for plattform - benyttes med elnummer 8853416",null,"stk. ",null,null,8853408]
[null,"Alternativt / reserveutstyr "]
[]
[null,"Husk rengjøring! ",null,null,null,"Rengjøring for AUS utstyr | Melbye AS"]
[null,"Renseserviett 30stk i eske for isolerstenger og AUS utstyr",null,null,null,null,1835693]
[null,"Renseserviett 72stk i dispenser boks for rengjøring av AUS utstyr",null,null,null,null,1835696]
[null,"Rensespray for rengjøring av AUS utstyr",null,null,null,null,1835697]
[null,"Påfyll flaske 3,8 liter for rensespray",null,null,null,null,1835698]
[null,"Påfyll spann 18,9 liter for rensespray",null,null,null,null,1835699]

{"sheet":"Traversskift med hjelpetravers","index":9,"n_rows":25,"n_cols":4,"rows_kept":25,"cut":false,"hidden":false,"merged":[]}
[null,null,null,"Traversskift med hjelpetravers"]
[]
["Pos.","Ant.","El. nr.","Type"]
[null,1,8871064,{"$f":"VLOOKUP(C4,'D365 - vareliste'!A:C,2,FALSE)","v":"Teleskopklostang 1,66m - 2,44m allsidig for fleste AUS utstyr"}]
[null,1,8871100,{"$f":"VLOOKUP(C5,'D365 - vareliste'!A:C,2,FALSE)","v":"Teleskopklostang 2,57m - 4,25m allsidig for fleste AUS utstyr"}]
[null,1,8852520,{"$f":"VLOOKUP(C6,'D365 - vareliste'!A:C,2,FALSE)","v":"Sadel fjærbelastet låseanordning for taufester"}]
[null,1,8871154,{"$f":"VLOOKUP(C7,'D365 - vareliste'!A:C,2,FALSE)","v":"Tautalje med doble blokker med polypropylen tau 12mm"}]
[null,1,8871147,{"$f":"VLOOKUP(C8,'D365 - vareliste'!A:C,2,FALSE)","v":"Stangisolator 38cm lang med krok og øye"}]
[null,2,8871162,{"$f":"VLOOKUP(C9,'D365 - vareliste'!A:C,2,FALSE)","v":"Sadel fjærbelastet låseanordning for lineløfter med forlenger"}]
[null,1,8871163,{"$f":"VLOOKUP(C10,'D365 - vareliste'!A:C,2,FALSE)","v":"Stangklemme for lineløfter med 2-sidig gaffel"}]
[null,1,8871191,{"$f":"VLOOKUP(C11,'D365 - vareliste'!A:C,2,FALSE)","v":"Svivel for lineløfter"}]
[null,1,8871136,{"$f":"VLOOKUP(C12,'D365 - vareliste'!A:C,2,FALSE)","v":"Lineløfter 4,47 meter lang"}]
[null,2,8871141,{"$f":"VLOOKUP(C13,'D365 - vareliste'!A:C,2,FALSE)","v":"Lineholder 3 meter lang"}]
[null,3,8871185,{"$f":"VLOOKUP(C14,'D365 - vareliste'!A:C,2,FALSE)","v":"Isolator for hjelpetravers med smekklås"}]
[null,1,8871166,{"$f":"VLOOKUP(C15,'D365 - vareliste'!A:C,2,FALSE)","v":"T-klemme med isolator"}]
[null,2,8871157,{"$f":"VLOOKUP(C16,'D365 - vareliste'!A:C,2,FALSE)","v":"Stigbøyle med bøylefeste"}]
[null,1,8871159,{"$f":"VLOOKUP(C17,'D365 - vareliste'!A:C,2,FALSE)","v":"Hjelpetravers 3 meter lang for en lineløfter"}]
[null,1,8871184,{"$f":"VLOOKUP(C18,'D365 - vareliste'!A:C,2,FALSE)","v":"Roterende krok med ABC feste"}]
[null,1,8871189,{"$f":"VLOOKUP(C19,'D365 - vareliste'!A:C,2,FALSE)","v":"Kuttesaks med håndtak 1,8m lang, manuell betjening"}]
[null,1,8871093,{"$f":"VLOOKUP(C20,'D365 - vareliste'!A:C,2,FALSE)","v":"Kuttesaks med håndtak 2,4m lang, manuell betjening"}]
[null,1,8871149,{"$f":"VLOOKUP(C21,'D365 - vareliste'!A:C,2,FALSE)","v":"Universal verktøystang 2,5 m ABC feste i begge ender"}]
[null,1,8871095,{"$f":"VLOOKUP(C22,'D365 - vareliste'!A:C,2,FALSE)","v":"Universal verktøystang 3,75 m ABC feste i begge ender"}]
[null,1,8871109,{"$f":"VLOOKUP(C23,'D365 - vareliste'!A:C,2,FALSE)","v":"Roterende bendsleblad for bendslinger med ABC feste"}]
[null,1,8871119,{"$f":"VLOOKUP(C24,'D365 - vareliste'!A:C,2,FALSE)","v":"X-bendsleblad for bendslinger med ABC feste"}]
[null,3,8871222,{"$f":"VLOOKUP(C25,'D365 - vareliste'!A:C,2,FALSE)","v":"Tildekning for travers 36,6 kV AUS utstyr - hardplast"}]

{"sheet":"Skifte bendsling","index":10,"n_rows":14,"n_cols":4,"rows_kept":14,"cut":false,"hidden":false,"merged":[]}
[null,null,null,"Skifte bendsling"]
[]
["Pos.","Ant.","El. nr.","Type"]
[null,1,8871189,{"$f":"VLOOKUP(C4,'D365 - vareliste'!A:C,2,FALSE)","v":"Kuttesaks med håndtak 1,8m lang, manuell betjening"}]
[null,1,8871093,{"$f":"VLOOKUP(C5,'D365 - vareliste'!A:C,2,FALSE)","v":"Kuttesaks med håndtak 2,4m lang, manuell betjening"}]
[null,1,8871149,{"$f":"VLOOKUP(C6,'D365 - vareliste'!A:C,2,FALSE)","v":"Universal verktøystang 2,5 m ABC feste i begge ender"}]
[null,1,8871095,{"$f":"VLOOKUP(C7,'D365 - vareliste'!A:C,2,FALSE)","v":"Universal verktøystang 3,75 m ABC feste i begge ender"}]
[null,1,8871109,{"$f":"VLOOKUP(C8,'D365 - vareliste'!A:C,2,FALSE)","v":"Roterende bendsleblad for bendslinger med ABC feste"}]
[null,1,8871119,{"$f":"VLOOKUP(C9,'D365 - vareliste'!A:C,2,FALSE)","v":"X-bendsleblad for bendslinger med ABC feste"}]
[null,1,8871023,{"$f":"VLOOKUP(C10,'D365 - vareliste'!A:C,2,FALSE)","v":"Skralle med 1/2\" firkantfeste med ABC feste"}]
[null,1,8871020,{"$f":"VLOOKUP(C11,'D365 - vareliste'!A:C,2,FALSE)","v":"Speil for inspeksjon av anlegg med ABC feste"}]
[null,1,8870970,{"$f":"VLOOKUP(C12,'D365 - vareliste'!A:C,2,FALSE)","v":"Hel isolerduk med 6 hull 36 kV AUS utstyr - gummi"}]
[null,1,8870971,{"$f":"VLOOKUP(C13,'D365 - vareliste'!A:C,2,FALSE)","v":"Splitt isolerduk med 28 hull 36 kV AUS utstyr - gummi"}]
[null,1,8871222,{"$f":"VLOOKUP(C14,'D365 - vareliste'!A:C,2,FALSE)","v":"Tildekning for travers 36,6 kV AUS utstyr - hardplast"}]

{"sheet":"Glassisolator skift","index":11,"n_rows":18,"n_cols":4,"rows_kept":18,"cut":false,"hidden":false,"merged":[]}
[null,null,null,"Glassisolator skift"]
[]
["Pos.","Ant.","El. nr.","Type"]
[null,1,8871064,{"$f":"VLOOKUP(C4,'D365 - vareliste'!A:C,2,FALSE)","v":"Teleskopklostang 1,66m - 2,44m allsidig for fleste AUS utstyr"}]
[null,1,8871100,{"$f":"VLOOKUP(C5,'D365 - vareliste'!A:C,2,FALSE)","v":"Teleskopklostang 2,57m - 4,25m allsidig for fleste AUS utstyr"}]
[null,1,8871149,{"$f":"VLOOKUP(C6,'D365 - vareliste'!A:C,2,FALSE)","v":"Universal verktøystang 2,5 m ABC feste i begge ender"}]
[null,1,8871095,{"$f":"VLOOKUP(C7,'D365 - vareliste'!A:C,2,FALSE)","v":"Universal verktøystang 3,75 m ABC feste i begge ender"}]
[null,1,8871184,{"$f":"VLOOKUP(C8,'D365 - vareliste'!A:C,2,FALSE)","v":"Roterende krok med ABC feste"}]
[null,2,8870970,{"$f":"VLOOKUP(C9,'D365 - vareliste'!A:C,2,FALSE)","v":"Hel isolerduk med 6 hull 36 kV AUS utstyr - gummi"}]
[null,2,8870971,{"$f":"VLOOKUP(C10,'D365 - vareliste'!A:C,2,FALSE)","v":"Splitt isolerduk med 28 hull 36 kV AUS utstyr - gummi"}]
[null,1,8871138,{"$f":"VLOOKUP(C11,'D365 - vareliste'!A:C,2,FALSE)","v":"Isolatorgriper med vinkel justering med ABC feste"}]
[null,4,8870973,{"$f":"VLOOKUP(C12,'D365 - vareliste'!A:C,2,FALSE)","v":"Festeklype med 2 ring - passer til klostang"}]
[null,1,8871186,{"$f":"VLOOKUP(C13,'D365 - vareliste'!A:C,2,FALSE)","v":"Strekkavlaster 34,5 kV 1,5-1,8 meter lang med krok"}]
[null,1,8871003,{"$f":"VLOOKUP(C14,'D365 - vareliste'!A:C,2,FALSE)","v":"Hammer med ABC feste"}]
[null,1,8871164,{"$f":"VLOOKUP(C15,'D365 - vareliste'!A:C,2,FALSE)","v":"Splintuttrekker med ABC feste"}]
[null,1,8871165,{"$f":"VLOOKUP(C16,'D365 - vareliste'!A:C,2,FALSE)","v":"Splintholder med ABC feste"}]
[null,1,8871105,{"$f":"VLOOKUP(C17,'D365 - vareliste'!A:C,2,FALSE)","v":"Krokodilleklemme med mulighet for å vinkle med ABC feste"}]
[null,1,8871220,{"$f":"VLOOKUP(C18,'D365 - vareliste'!A:C,2,FALSE)","v":"Tildekning for strekkisolator 36,6 kV AUS utstyr - hardplast"}]

{"sheet":"3-par stangmetoden for E-mast","index":12,"n_rows":34,"n_cols":4,"rows_kept":34,"cut":false,"hidden":false,"merged":[]}
[null,null,null,"3-par stangmetoden for E-mast"]
[]
["Pos.","Ant.","El.nr.","Type"]
[null,3,8871141,{"$f":"VLOOKUP(C4,'D365 - vareliste'!A:C,2,FALSE)","v":"Lineholder 3 meter lang"}]
[null,1,8871192,{"$f":"VLOOKUP(C5,'D365 - vareliste'!A:C,2,FALSE)","v":"Lineløfter 3,25 meter lang"}]
[null,1,8871137,{"$f":"VLOOKUP(C6,'D365 - vareliste'!A:C,2,FALSE)","v":"Lineløfter 3,85 meter lang"}]
[null,1,8871136,{"$f":"VLOOKUP(C7,'D365 - vareliste'!A:C,2,FALSE)","v":"Lineløfter 4,47 meter lang"}]
[null,1,8871139,{"$f":"VLOOKUP(C8,'D365 - vareliste'!A:C,2,FALSE)","v":"Lineløfter 5,25 meter lang To-delt"}]
[null,2,8871151,{"$f":"VLOOKUP(C9,'D365 - vareliste'!A:C,2,FALSE)","v":"Sadel fjærbelastet låseanordning for lineholder uten forlenger"}]
[null,1,8871155,{"$f":"VLOOKUP(C10,'D365 - vareliste'!A:C,2,FALSE)","v":"Sadel fjærbelastet låseanordning for lineløfter uten forlenger"}]
[null,1,8871153,{"$f":"VLOOKUP(C11,'D365 - vareliste'!A:C,2,FALSE)","v":"Sadel fjærbelastet låseanordning for lineholder med forlenger"}]
[null,2,8871162,{"$f":"VLOOKUP(C12,'D365 - vareliste'!A:C,2,FALSE)","v":"Sadel fjærbelastet låseanordning for lineløfter med forlenger"}]
[null,1,8852520,{"$f":"VLOOKUP(C13,'D365 - vareliste'!A:C,2,FALSE)","v":"Sadel fjærbelastet låseanordning for taufester"}]
[null,3,8871154,{"$f":"VLOOKUP(C14,'D365 - vareliste'!A:C,2,FALSE)","v":"Tautalje med doble blokker med polypropylen tau 12mm"}]
[null,1,8871158,{"$f":"VLOOKUP(C15,'D365 - vareliste'!A:C,2,FALSE)","v":"Krok for håndline med 2 hull"}]
[null,1,8871210,{"$f":"VLOOKUP(C16,'D365 - vareliste'!A:C,2,FALSE)","v":"Kuttesaks med jekk håndtak 2,4m lang, manuell betjening"}]
[null,1,8871115,{"$f":"VLOOKUP(C17,'D365 - vareliste'!A:C,2,FALSE)","v":"Pipenøkkelstang med vinkelhode med 1/2\" firkantfeste"}]
[null,1,8871111,{"$f":"VLOOKUP(C18,'D365 - vareliste'!A:C,2,FALSE)","v":"Pipenøkkelstang med 1/2\" firkantfeste på begge ender"}]
[null,1,8871149,{"$f":"VLOOKUP(C19,'D365 - vareliste'!A:C,2,FALSE)","v":"Universal verktøystang 2,5 m ABC feste i begge ender"}]
[null,1,8871095,{"$f":"VLOOKUP(C20,'D365 - vareliste'!A:C,2,FALSE)","v":"Universal verktøystang 3,75 m ABC feste i begge ender"}]
[null,1,8871213,{"$f":"VLOOKUP(C21,'D365 - vareliste'!A:C,2,FALSE)","v":"Bendslering med ABC feste"}]
[null,1,8871199,{"$f":"VLOOKUP(C22,'D365 - vareliste'!A:C,2,FALSE)","v":"Benslering for benslespiral med ABC feste"}]
[null,2,8871021,{"$f":"VLOOKUP(C23,'D365 - vareliste'!A:C,2,FALSE)","v":"Verktøyfeste med 1,58cm hull for diverse verktøy med ABC feste"}]
[null,1,8871020,{"$f":"VLOOKUP(C24,'D365 - vareliste'!A:C,2,FALSE)","v":"Speil for inspeksjon av anlegg med ABC feste"}]
[null,2,8871184,{"$f":"VLOOKUP(C25,'D365 - vareliste'!A:C,2,FALSE)","v":"Roterende krok med ABC feste"}]
[null,2,8871109,{"$f":"VLOOKUP(C26,'D365 - vareliste'!A:C,2,FALSE)","v":"Roterende bendsleblad for bendslinger med ABC feste"}]
[null,1,8871140,{"$f":"VLOOKUP(C27,'D365 - vareliste'!A:C,2,FALSE)","v":"Adapter feste 90° grader med ABC feste"}]
[null,1,8871105,{"$f":"VLOOKUP(C28,'D365 - vareliste'!A:C,2,FALSE)","v":"Krokodilleklemme med mulighet for å vinkle med ABC feste"}]
[null,1,8871064,{"$f":"VLOOKUP(C29,'D365 - vareliste'!A:C,2,FALSE)","v":"Teleskopklostang 1,66m - 2,44m allsidig for fleste AUS utstyr"}]
[null,1,8871100,{"$f":"VLOOKUP(C30,'D365 - vareliste'!A:C,2,FALSE)","v":"Teleskopklostang 2,57m - 4,25m allsidig for fleste AUS utstyr"}]
[null,3,8870970,{"$f":"VLOOKUP(C31,'D365 - vareliste'!A:C,2,FALSE)","v":"Hel isolerduk med 6 hull 36 kV AUS utstyr - gummi"}]
[null,3,8870971,{"$f":"VLOOKUP(C32,'D365 - vareliste'!A:C,2,FALSE)","v":"Splitt isolerduk med 28 hull 36 kV AUS utstyr - gummi"}]
[null,6,8870973,{"$f":"VLOOKUP(C33,'D365 - vareliste'!A:C,2,FALSE)","v":"Festeklype med 2 ring - passer til klostang"}]
[null,3,8871222,{"$f":"VLOOKUP(C34,'D365 - vareliste'!A:C,2,FALSE)","v":"Tildekning for travers 36,6 kV AUS utstyr - hardplast"}]

{"sheet":"AUS klasse.2 24 kV","index":13,"n_rows":38,"n_cols":4,"rows_kept":38,"cut":false,"hidden":false,"merged":[]}
[null,null,null,"AUS Klasse.2 24 kV"]
[]
["Pos.","Ant.","El. nr.","Type"]
[null,1,8871100,{"$f":"VLOOKUP(C4,'D365 - vareliste'!A:C,2,FALSE)","v":"Teleskopklostang 2,57m - 4,25m allsidig for fleste AUS utstyr"}]
[null,1,8871092,{"$f":"VLOOKUP(C5,'D365 - vareliste'!A:C,2,FALSE)","v":"Linegriper 3,4 meter lang for å holde fast lederen"}]
[null,1,8871210,{"$f":"VLOOKUP(C6,'D365 - vareliste'!A:C,2,FALSE)","v":"Kuttesaks med jekk håndtak 2,4m lang, manuell betjening"}]
[null,1,8871095,{"$f":"VLOOKUP(C7,'D365 - vareliste'!A:C,2,FALSE)","v":"Universal verktøystang 3,75 m ABC feste i begge ender"}]
[null,1,8871111,{"$f":"VLOOKUP(C8,'D365 - vareliste'!A:C,2,FALSE)","v":"Pipenøkkelstang med 1/2\" firkantfeste på begge ender"}]
[null,3,8871174,{"$f":"VLOOKUP(C9,'D365 - vareliste'!A:C,2,FALSE)","v":"Futteral 2650 x 150 mm"}]
[null,1,8871175,{"$f":"VLOOKUP(C10,'D365 - vareliste'!A:C,2,FALSE)","v":"Futteral 3400 x 200 mm"}]
[null,6,8871132,{"$f":"VLOOKUP(C11,'D365 - vareliste'!A:C,2,FALSE)","v":"Parkeringsisolator 34,5 kV isolerlengde 38cm"}]
[null,1,8871023,{"$f":"VLOOKUP(C12,'D365 - vareliste'!A:C,2,FALSE)","v":"Skralle med 1/2\" firkantfeste med ABC feste"}]
[null,2,8871021,{"$f":"VLOOKUP(C13,'D365 - vareliste'!A:C,2,FALSE)","v":"Verktøyfeste med 1,58cm hull for diverse verktøy med ABC feste"}]
[null,1,8871020,{"$f":"VLOOKUP(C14,'D365 - vareliste'!A:C,2,FALSE)","v":"Speil for inspeksjon av anlegg med ABC feste"}]
[null,1,8871102,{"$f":"VLOOKUP(C15,'D365 - vareliste'!A:C,2,FALSE)","v":"Fleksibel pipeholder med 1/2\" firkantfeste med fjær med ABC feste"}]
[null,1,8871212,{"$f":"VLOOKUP(C16,'D365 - vareliste'!A:C,2,FALSE)","v":"V-stålbørste for pussing av line med ABC feste"}]
[null,1,8871140,{"$f":"VLOOKUP(C17,'D365 - vareliste'!A:C,2,FALSE)","v":"Adapter feste 90° grader med ABC feste"}]
[null,1,8871144,{"$f":"VLOOKUP(C18,'D365 - vareliste'!A:C,2,FALSE)","v":"Stålbørste for pussing av line med ABC feste"}]
[null,1,8871213,{"$f":"VLOOKUP(C19,'D365 - vareliste'!A:C,2,FALSE)","v":"Bendslering med ABC feste"}]
[null,2,8871216,{"$f":"VLOOKUP(C20,'D365 - vareliste'!A:C,2,FALSE)","v":"Verktøyfeste for skiftenøkkel med ABC feste"}]
[null,10,8871211,{"$f":"VLOOKUP(C21,'D365 - vareliste'!A:C,2,FALSE)","v":"Polypropylen tau 6,35mm"}]
[null,1,8874019,{"$f":"VLOOKUP(C22,'D365 - vareliste'!A:C,2,FALSE)","v":"Silikonvoks i 155ml tuber"}]
[]
[null,null,"For ettermontering av forsterket oppheng med piggisolatorer"]
[]
["Pos","Ant.","El.nr.","Type"]
[null,4,8880191,{"$f":"VLOOKUP(C27,'D365 - vareliste'!A:C,2,FALSE)","v":"Faseslange 1,5m 26,4 kV med feste for klostang - hardplast\n"}]
[null,3,8871220,{"$f":"VLOOKUP(C28,'D365 - vareliste'!A:C,2,FALSE)","v":"Tildekning for strekkisolator 36,6 kV AUS utstyr - hardplast"}]
[null,3,8871221,{"$f":"VLOOKUP(C29,'D365 - vareliste'!A:C,2,FALSE)","v":"Tildekning for piggisolator 36,6 kV AUS utstyr - hardplast"}]
[null,3,8871222,{"$f":"VLOOKUP(C30,'D365 - vareliste'!A:C,2,FALSE)","v":"Tildekning for travers 36,6 kV AUS utstyr - hardplast"}]
[null,3,8871224,{"$f":"VLOOKUP(C31,'D365 - vareliste'!A:C,2,FALSE)","v":"Tildekning for sikring i luftanlegg 26,4 kV AUS utstyr - hardplast"}]
[null,3,8871226,{"$f":"VLOOKUP(C32,'D365 - vareliste'!A:C,2,FALSE)","v":"Tildekning for piggisolator 26,4 kV AUS utstyr - hardplast"}]
[null,3,8871227,{"$f":"VLOOKUP(C33,'D365 - vareliste'!A:C,2,FALSE)","v":"Tildekning for strekkisolator 26,4 kV AUS utstyr - hardplast"}]
[]
[null,null,null,"Annet \"kjekt å ha\" utstyr"]
[]
["Pos","Ant.","El.nr.","Type"]
[null,1,8871150,{"$f":"VLOOKUP(C38,'D365 - vareliste'!A:C,2,FALSE)","v":"Aerosolholder med ABC feste"}]

{"sheet":"AUS klasse.2 72,5 kV","index":14,"n_rows":27,"n_cols":4,"rows_kept":27,"cut":false,"hidden":false,"merged":[]}
[null,null,null,"AUS Klasse.2 72,5 kV"]
[]
["Pos.","Ant.","El. nr.","Type"]
[null,1,8871092,{"$f":"VLOOKUP(C4,'D365 - vareliste'!A:C,2,FALSE)","v":"Linegriper 3,4 meter lang for å holde fast lederen"}]
[null,1,8870900,"Faseslange 1,3m 72,5 kV AUS utstyr - hardplast"]
[null,1,8871210,{"$f":"VLOOKUP(C6,'D365 - vareliste'!A:C,2,FALSE)","v":"Kuttesaks med jekk håndtak 2,4m lang, manuell betjening"}]
[null,1,8871095,{"$f":"VLOOKUP(C7,'D365 - vareliste'!A:C,2,FALSE)","v":"Universal verktøystang 3,75 m ABC feste i begge ender"}]
[null,1,8871111,{"$f":"VLOOKUP(C8,'D365 - vareliste'!A:C,2,FALSE)","v":"Pipenøkkelstang med 1/2\" firkantfeste på begge ender"}]
[null,3,8871174,{"$f":"VLOOKUP(C9,'D365 - vareliste'!A:C,2,FALSE)","v":"Futteral 2650 x 150 mm"}]
[null,1,8871175,{"$f":"VLOOKUP(C10,'D365 - vareliste'!A:C,2,FALSE)","v":"Futteral 3400 x 200 mm"}]
[null,6,8871215,{"$f":"VLOOKUP(C11,'D365 - vareliste'!A:C,2,FALSE)","v":"Parkeringsisolator 66 kV isolerlengde 88cm\n"}]
[null,1,8871023,{"$f":"VLOOKUP(C12,'D365 - vareliste'!A:C,2,FALSE)","v":"Skralle med 1/2\" firkantfeste med ABC feste"}]
[null,2,8871021,{"$f":"VLOOKUP(C13,'D365 - vareliste'!A:C,2,FALSE)","v":"Verktøyfeste med 1,58cm hull for diverse verktøy med ABC feste"}]
[null,1,8871020,{"$f":"VLOOKUP(C14,'D365 - vareliste'!A:C,2,FALSE)","v":"Speil for inspeksjon av anlegg med ABC feste"}]
[null,1,8871102,{"$f":"VLOOKUP(C15,'D365 - vareliste'!A:C,2,FALSE)","v":"Fleksibel pipeholder med 1/2\" firkantfeste med fjær med ABC feste"}]
[null,1,8871212,{"$f":"VLOOKUP(C16,'D365 - vareliste'!A:C,2,FALSE)","v":"V-stålbørste for pussing av line med ABC feste"}]
[null,1,8871140,{"$f":"VLOOKUP(C17,'D365 - vareliste'!A:C,2,FALSE)","v":"Adapter feste 90° grader med ABC feste"}]
[null,1,8871144,{"$f":"VLOOKUP(C18,'D365 - vareliste'!A:C,2,FALSE)","v":"Stålbørste for pussing av line med ABC feste"}]
[null,1,8871213,{"$f":"VLOOKUP(C19,'D365 - vareliste'!A:C,2,FALSE)","v":"Bendslering med ABC feste"}]
[null,2,8871216,{"$f":"VLOOKUP(C20,'D365 - vareliste'!A:C,2,FALSE)","v":"Verktøyfeste for skiftenøkkel med ABC feste"}]
[null,10,8871211,{"$f":"VLOOKUP(C21,'D365 - vareliste'!A:C,2,FALSE)","v":"Polypropylen tau 6,35mm"}]
[null,1,8874019,{"$f":"VLOOKUP(C22,'D365 - vareliste'!A:C,2,FALSE)","v":"Silikonvoks i 155ml tuber"}]
[]
[null,null,null,"Annet \"kjekt å ha\" utstyr"]
[]
["Pos","Ant.","El.nr.","Type"]
[null,1,8871150,{"$f":"VLOOKUP(C27,'D365 - vareliste'!A:C,2,FALSE)","v":"Aerosolholder med ABC feste"}]

{"sheet":"AUS klasse.3 med teleskopmast","index":15,"n_rows":41,"n_cols":6,"rows_kept":41,"cut":false,"hidden":false,"merged":[]}
[null,null,null,"AUS klasse 3"]
[]
[null,null,"Redusert  verktøyliste ved bruk av teleskopmast og topptravers"]
["Pos.","Ant.","El.nr.","Type"]
[null,1,8871115,{"$f":"VLOOKUP(C5,'D365 - vareliste'!A:C,2,FALSE)","v":"Pipenøkkelstang med vinkelhode med 1/2\" firkantfeste"},null,"Tildekningsutstyr må vurderes"]
[null,1,8871111,{"$f":"VLOOKUP(C6,'D365 - vareliste'!A:C,2,FALSE)","v":"Pipenøkkelstang med 1/2\" firkantfeste på begge ender"},null,"Tildekningsutstyr | Melbye As"]
[null,3,8871149,{"$f":"VLOOKUP(C7,'D365 - vareliste'!A:C,2,FALSE)","v":"Universal verktøystang 2,5 m ABC feste i begge ender"}]
[null,1,8871189,{"$f":"VLOOKUP(C8,'D365 - vareliste'!A:C,2,FALSE)","v":"Kuttesaks med håndtak 1,8m lang, manuell betjening"},null,"Tildekningsutstyr - tilbehør må vurderes"]
[null,2,8871136,{"$f":"VLOOKUP(C9,'D365 - vareliste'!A:C,2,FALSE)","v":"Lineløfter 4,47 meter lang"},null,"Tildekningsutstyr - Tilbehør | Melbye AS"]
[null,1,8871151,{"$f":"VLOOKUP(C10,'D365 - vareliste'!A:C,2,FALSE)","v":"Sadel fjærbelastet låseanordning for lineholder uten forlenger"}]
[null,2,8871155,{"$f":"VLOOKUP(C11,'D365 - vareliste'!A:C,2,FALSE)","v":"Sadel fjærbelastet låseanordning for lineløfter uten forlenger"}]
[null,1,8871198,{"$f":"VLOOKUP(C12,'D365 - vareliste'!A:C,2,FALSE)","v":"Sadel fjærbelastet låseanordning med gaffel"}]
[null,1,8871153,{"$f":"VLOOKUP(C13,'D365 - vareliste'!A:C,2,FALSE)","v":"Sadel fjærbelastet låseanordning for lineholder med forlenger"}]
[null,2,8871162,{"$f":"VLOOKUP(C14,'D365 - vareliste'!A:C,2,FALSE)","v":"Sadel fjærbelastet låseanordning for lineløfter med forlenger"}]
[null,3,8871191,{"$f":"VLOOKUP(C15,'D365 - vareliste'!A:C,2,FALSE)","v":"Svivel for lineløfter"}]
[null,1,8871187,{"$f":"VLOOKUP(C16,'D365 - vareliste'!A:C,2,FALSE)","v":"Sadel fjærbelastet låseanordning med løftearm"}]
[null,2,8852520,{"$f":"VLOOKUP(C17,'D365 - vareliste'!A:C,2,FALSE)","v":"Sadel fjærbelastet låseanordning for taufester"}]
[null,1,8871157,{"$f":"VLOOKUP(C18,'D365 - vareliste'!A:C,2,FALSE)","v":"Stigbøyle med bøylefeste"}]
[null,2,8871190,{"$f":"VLOOKUP(C19,'D365 - vareliste'!A:C,2,FALSE)","v":"Stangklemme for lineholder med ring"}]
[null,2,8871199,{"$f":"VLOOKUP(C20,'D365 - vareliste'!A:C,2,FALSE)","v":"Benslering for benslespiral med ABC feste"}]
[null,1,8871213,{"$f":"VLOOKUP(C21,'D365 - vareliste'!A:C,2,FALSE)","v":"Bendslering med ABC feste"}]
[null,1,8871158,{"$f":"VLOOKUP(C22,'D365 - vareliste'!A:C,2,FALSE)","v":"Krok for håndline med 2 hull"}]
[null,1,8871164,{"$f":"VLOOKUP(C23,'D365 - vareliste'!A:C,2,FALSE)","v":"Splintuttrekker med ABC feste"}]
[null,2,8871021,{"$f":"VLOOKUP(C24,'D365 - vareliste'!A:C,2,FALSE)","v":"Verktøyfeste med 1,58cm hull for diverse verktøy med ABC feste"}]
[null,1,8871020,{"$f":"VLOOKUP(C25,'D365 - vareliste'!A:C,2,FALSE)","v":"Speil for inspeksjon av anlegg med ABC feste"}]
[null,1,8871138,{"$f":"VLOOKUP(C26,'D365 - vareliste'!A:C,2,FALSE)","v":"Isolatorgriper med vinkel justering med ABC feste"}]
[null,2,8871184,{"$f":"VLOOKUP(C27,'D365 - vareliste'!A:C,2,FALSE)","v":"Roterende krok med ABC feste"}]
[null,2,8871109,{"$f":"VLOOKUP(C28,'D365 - vareliste'!A:C,2,FALSE)","v":"Roterende bendsleblad for bendslinger med ABC feste"}]
[null,1,8871146,{"$f":"VLOOKUP(C29,'D365 - vareliste'!A:C,2,FALSE)","v":"Sikringstang med åpning fra 13mm til 38mm med ABC feste"}]
[null,1,8871140,{"$f":"VLOOKUP(C30,'D365 - vareliste'!A:C,2,FALSE)","v":"Adapter feste 90° grader med ABC feste"}]
[null,1,8871121,{"$f":"VLOOKUP(C31,'D365 - vareliste'!A:C,2,FALSE)","v":"Splintsetter for W-splint med ABC feste"}]
[null,1,8871105,{"$f":"VLOOKUP(C32,'D365 - vareliste'!A:C,2,FALSE)","v":"Krokodilleklemme med mulighet for å vinkle med ABC feste"}]
[null,1,8853416,{"$f":"VLOOKUP(C33,'D365 - vareliste'!A:C,2,FALSE)","v":"Arbeidsplattform i epoxyglass 2,4 meter lang"}]
[null,1,8853408,{"$f":"VLOOKUP(C34,'D365 - vareliste'!A:C,2,FALSE)","v":"Rekkverk for plattform - benyttes med elnummer 8853416"}]
[null,3,8871154,{"$f":"VLOOKUP(C35,'D365 - vareliste'!A:C,2,FALSE)","v":"Tautalje med doble blokker med polypropylen tau 12mm"}]
[null,1,9300335,{"$f":"VLOOKUP(C36,'D365 - vareliste'!A:C,2,FALSE)","v":"AUS teleskopmast"}]
[]
["Redusert verktøy medfører at 3-parstangmetoden ikke kan benyttes."]
["På steder hvor en ikke kommer til med teleskopmasten eller kjøretøy,"]
["kan sidetraversmetoden benyttes. (Ikke oppstrekk)"]
["AUS kan utføres i vinkelpunkt som tidligere."]

{"sheet":"Tester AUS betjeningsstenger","index":16,"n_rows":4,"n_cols":4,"rows_kept":4,"cut":false,"hidden":false,"merged":[]}
[null,null,null,"Tester for AUS betjeningsstenger og tau iht. IEC 60855-1 (100kV-30cm)"]
[]
["Pos.","Ant.","El.nr.","Type"]
[1,1,8874025,{"$f":"VLOOKUP(C4,'D365 - vareliste'!A:C,2,FALSE)","v":"Tester for AUS betjeningsstenger og tau iht. IEC 60855-1 (100kV-30cm)"}]

{"sheet":"Arbeidsplattform","index":17,"n_rows":5,"n_cols":4,"rows_kept":5,"cut":false,"hidden":false,"merged":[]}
[null,null,null,"Arbeidsplattform i epoxyglass 2,4 meter lang"]
[]
["Pos.","Ant.","El.nr.","Type"]
[1,1,8853416,{"$f":"VLOOKUP(C4,'D365 - vareliste'!A:C,2,FALSE)","v":"Arbeidsplattform i epoxyglass 2,4 meter lang"}]
[2,1,8853408,{"$f":"VLOOKUP(C5,'D365 - vareliste'!A:C,2,FALSE)","v":"Rekkverk for plattform - benyttes med elnummer 8853416"}]

{"sheet":"Rengjøring","index":18,"n_rows":10,"n_cols":4,"rows_kept":10,"cut":false,"hidden":false,"merged":[]}
[null,null,null,"Rengjøring av AUS produkter og utstyr"]
[]
["Pos.","Ant.","El.nr.","Type"]
[null,1,1835693,{"$f":"VLOOKUP(C4,'D365 - vareliste'!A:C,2,FALSE)","v":"Renseserviett 30stk i eske for isolerstenger og AUS utstyr"}]
[null,1,1835696,{"$f":"VLOOKUP(C5,'D365 - vareliste'!A:C,2,FALSE)","v":"Renseserviett 72stk i dispenser boks for rengjøring av AUS utstyr"}]
[null,1,1835697,{"$f":"VLOOKUP(C6,'D365 - vareliste'!A:C,2,FALSE)","v":"Rensespray for rengjøring av AUS utstyr"}]
[null,1,1835698,{"$f":"VLOOKUP(C7,'D365 - vareliste'!A:C,2,FALSE)","v":"Påfyll flaske 3,8 liter for rensespray"}]
[null,1,1835699,{"$f":"VLOOKUP(C8,'D365 - vareliste'!A:C,2,FALSE)","v":"Påfyll spann 18,9 liter for rensespray"}]
[]
[null,null,null,"Rengjøring for AUS utstyr | Melbye AS"]

{"sheet":"RENBlad 1701","index":19,"n_rows":1,"n_cols":3,"rows_kept":1,"cut":false,"hidden":false,"merged":[]}
[null,null,"Hva er AUS og fordelene? Barrierer? Periodisk test? Oppbevaring og transport? Se utdrag på denne siden:"]

{"sheet":"D365 - vareliste","index":20,"n_rows":164,"n_cols":3,"rows_kept":164,"cut":false,"hidden":true,"merged":[]}
["Varenummer","Beskrivelse","Leverandørens varenummer"]
[112358,"Shunt kabel 24V - 250 A","S11272P500"]
[112359,"Shunt TF klemme - 400 A","C6001743"]
[112360,"Shunt pinnekontakt for TF klemme C-Type I-A-5 1.50\"","C6002607"]
[115587,"AUS plattform feste passer 1,8m / 2,4m plattform","C4021173"]
[115588,"Strekkavlaster 69 kV 1,67 - 1,8 meter lang","C4000575"]
[115589,"Tautalje med 2-skåret/3-skåret blokk og polypropylen tau 12 mm","C4000915"]
[115590,"Linegriper 2,4 meter lang for å holde fast lederen","C4033069"]
[115591,"Sadel med løftearm singel type","M4760W"]
[115592,"Pipenøkkelstang med vinkelhode med 1/2\" firkantfeste 3 meter lang","C4030186"]
[117695,"Pipenøkkelstang med vinkelhode med 1/2\" firkantfeste 3,6m","PSC4030187"]
[117696,"Bendsleverktøy multi funksjon med ABC feste","C4031416"]
[117697,"Kniv med ABC feste","M445550"]
[117698,"Arbeidsplattform i epoxyglass 1,8 meter lang","C4021043"]
[117699,"Tildekning for piggisolator 46 kV AUS utstyr teleskop - hardplast","C4060046"]
[117700,"Tildekning for travers 26,4 kV AUS utstyr teleskop - hardplast","C4060504"]
[117702,"Stangisolator 148cm lang trinseklemme og øye","H47144"]
[122528,"Håndtak for teleskopklostang C4031036","P403-1315P"]
[131700019,"Abc verktøyfeste","M445510"]
[133000001,"Skjøt til isolert stang 1 1/4\" (Ø31,75mm)","H33651"]
[133000002,"Skjøt for isolert stang 1 1/2\" (Ø38mm)","H33652"]
[133000004,"ABC Universalhode 1 1/2\" (Ø38mm) til isolert stang\n","H4455A"]
["133000005-1","Isolert stang 1 1/4\" (Ø31,75mm) x 3m","H45393BP"]
["133000007-1","Isolert stang 1 1/2\" (Ø38mm) x 3m","H45403"]
[133000010,"ABC Plasthode 1 1/4\" (Ø31,75mm) til isolert stang\n","C4031996"]
[133000017,"ABC Universalhode","P4032514P"]
[133000202,"Vingeskrue for abc-1 1/4 Verktøyfeste.gjenger 5/16 unc","P4030467P"]
[1501016,"Shunt kabel 24kV - 250 A - 2meter lang"]
[1501017,"Shunt kabel 24kV - 250 A - 3meter lang"]
[1501018,"Shunt kabel 24kV - 250 A - 4meter lang"]
[1501019,"Shunt kabel 24kV - 250 A - 5meter lang"]
["8851988-N000","Fullisolert toppstang 72kV 3/4\" UNC for 8851988"]
[8851994,"Kvistsag ABC feste","C4032213"]
[8852520,"Sadel fjærbelastet låseanordning for taufester","M1846W"]
[8853408,"Rekkverk for plattform - benyttes med elnummer 8853416","C4020024"]
[8853416,"Arbeidsplattform i epoxyglass 2,4 meter lang","C4021079"]
["8853416-1","Feste for gittermast passer plattform 8853416","M490121"]
[8853418,"Festeholder for fallsikringsutstyr","PSC4021489"]
[8857519,"Stålbørste rørformet","M445593"]
[8870900,"Faseslange 1,3m 72,5 kV AUS utstyr - hardplast","PSC4060737GA"]
[8870901,"Festeklype med 3 ring - passer til klostang","PSC4060676"]
[8870931,"ABC teleskopstang 1,7m-10,6m med metrisk skala","C4031022EM"]
["8870931-1","Trykknappsett reservedel for teleskopstang elnr. 8870931","T4031251"]
[8870970,"Hel isolerduk med 6 hull 36 kV AUS utstyr - gummi","C4060346"]
[8870971,"Splitt isolerduk med 28 hull 36 kV AUS utstyr - gummi","C4060348"]
[8870973,"Festeklype med 2 ring - passer til klostang","C4060531"]
[8870977,"Faseslange 1,8m 26,5 kV uten skjøt AUS utstyr - gummi","C4060299"]
[8871003,"Hammer med ABC feste","M445585"]
[8871018,"Sikringstang med åpning fra 38mm til 63mm med ABC feste","M445578"]
[8871020,"Speil for inspeksjon av anlegg med ABC feste","M445538"]
[8871021,"Verktøyfeste med 1,58cm hull for diverse verktøy med ABC feste","M445537"]
[8871023,"Skralle med 1/2\" firkantfeste med ABC feste","M44556"]
[8871064,"Teleskopklostang 1,66m - 2,44m allsidig for fleste AUS utstyr","C4031035"]
["8871064-23","Teleskopklostang reservedel plugg for knapp (C4031035/C4031036)","P4031007P"]
["8871064-24","Teleskopklostang reservedel knapp (C4031035/C4031036)","P4033002P"]
["8871064-25","Teleskopklostang reservedel fjær 30mm lang (C4031035/C4031036)","P4032351P"]
[8871092,"Linegriper 3,4 meter lang for å holde fast lederen","T4032992"]
["8871092-25","Vingeskrue for håndtak linegriper .250-20 X .750\"","066636P"]
[8871093,"Kuttesaks med håndtak 2,4m lang, manuell betjening","T4030687"]
[8871095,"Universal verktøystang 3,75 m ABC feste i begge ender","H176012"]
["8871095-1","Holder for line med slangeklemme for universal verktøystang"]
["8871095-2","Holder for line for universal verktøystang","069118P"]
[8871100,"Teleskopklostang 2,57m - 4,25m allsidig for fleste AUS utstyr","C4031036"]
[8871102,"Fleksibel pipeholder med 1/2\" firkantfeste med fjær med ABC feste","M445546"]
[8871103,"Strekkavlaster med krok for rundt travers","PSC4004372"]
[8871104,"Festebrakett for midlertidig støtte av travers - 450 kg arbeidslast","PSC4012901"]
[8871105,"Krokodilleklemme med mulighet for å vinkle med ABC feste","C4030177"]
[8871109,"Roterende bendsleblad for bendslinger med ABC feste","M445570"]
[8871110,"Pipestang tilpasset momentnøkkel maks 100Nm","C4032136"]
[8871111,"Pipenøkkelstang med 1/2\" firkantfeste på begge ender","H18913"]
[8871115,"Pipenøkkelstang med vinkelhode med 1/2\" firkantfeste","C4030185"]
[8871119,"X-bendsleblad for bendslinger med ABC feste","M445540"]
[8871121,"Splintsetter for W-splint med ABC feste","M445597"]
[8871125,"Klostang 1,5 meter lang allsidig for fleste AUS utstyr","C4030291"]
[8871132,"Parkeringsisolator 34,5 kV isolerlengde 38cm","S16007"]
[8871136,"Lineløfter 4,47 meter lang","H464714"]
[8871137,"Lineløfter 3,85 meter lang","H464712"]
[8871138,"Isolatorgriper med vinkel justering med ABC feste","M445567"]
[8871139,"Lineløfter 5,25 meter lang To-delt","H464716"]
[8871140,"Adapter feste 90° grader med ABC feste","M445584"]
[8871141,"Lineholder 3 meter lang","H464510"]
[8871142,"Spiss verktøy 45° grader for splinter med ABC feste","M445515"]
[8871144,"Stålbørste for pussing av line med ABC feste","M445592"]
[8871146,"Sikringstang med åpning fra 13mm til 38mm med ABC feste","M445577"]
[8871147,"Stangisolator 38cm lang med krok og øye","C4001175"]
[8871149,"Universal verktøystang 2,5 m ABC feste i begge ender","H17604"]
[8871150,"Aerosolholder med ABC feste","C4032270"]
[8871151,"Sadel fjærbelastet låseanordning for lineholder uten forlenger","M47403W"]
[8871153,"Sadel fjærbelastet låseanordning for lineholder med forlenger","M474016W"]
[8871154,"Tautalje med doble blokker med polypropylen tau 12mm","C4000914"]
[8871155,"Sadel fjærbelastet låseanordning for lineløfter uten forlenger","M47405W"]
[8871156,"Blokk for håndline med krok av smidd stål","22301"]
[8871157,"Stigbøyle med bøylefeste","C4000331"]
[8871158,"Krok for håndline med 2 hull","M1849"]
[8871159,"Hjelpetravers 3 meter lang for en lineløfter","C4000075"]
[8871160,"Verktøystativ for isolerstenger/betjeningsstenger","M4660"]
[8871161,"Gaffelhode for sadel","M474014"]
[8871162,"Sadel fjærbelastet låseanordning for lineløfter med forlenger","M474018W"]
[8871163,"Stangklemme for lineløfter med 2-sidig gaffel","M17285"]
[8871164,"Splintuttrekker med ABC feste","M445512"]
[8871165,"Splintholder med ABC feste","M44552"]
[8871166,"T-klemme med isolator","C4000562"]
[8871170,"Overgang fra klostang til ABC feste","M1867"]
[8871184,"Roterende krok med ABC feste","M445569"]
[8871185,"Isolator for hjelpetravers med smekklås","M480515"]
[8871186,"Strekkavlaster 34,5 kV 1,5-1,8 meter lang med krok","C4000574"]
[8871187,"Sadel fjærbelastet låseanordning med løftearm","M47601W"]
[8871189,"Kuttesaks med håndtak 1,8m lang, manuell betjening","H18716"]
[8871190,"Stangklemme for lineholder med ring","M4743"]
[8871191,"Svivel for lineløfter","M47451"]
[8871192,"Lineløfter 3,25 meter lang","H464710"]
[8871198,"Sadel fjærbelastet låseanordning med gaffel","M474015W"]
[8871200,"Sikkerhetsskjerm for betjeningsstenger diameter 40cm med futteral","PSC4170627"]
[8871203,"Sikkerhetsskjerm for kuttesaks diameter 40cm med futteral","PSC4170630"]
[8871206,"Reservedel løs speil som passer for elnummer 8871020","P4033056P"]
[8871210,"Kuttesaks med jekk håndtak 2,4m lang, manuell betjening","C4031384"]
[8871211,"Polypropylen tau 6,35mm","M18951"]
[8871212,"V-stålbørste for pussing av line med ABC feste","M445563"]
[8871213,"Bendslering med ABC feste","C4030834"]
[8871215,"Parkeringsisolator 66 kV isolerlengde 88cm\n","PSS16007001"]
["8871216-1","Skive for produksjon 8871216","P4031322P"]
["8871216-2","Mutter for produksjon 8871216","058994P"]
["8871216-3","Pakning for produksjon 8871216","062601P"]
["8871216-4","Aksel universal for produksjon 8871216","069990P"]
[8871220,"Tildekning for strekkisolator 36,6 kV AUS utstyr - hardplast","C4060537"]
[8871221,"Tildekning for piggisolator 36,6 kV AUS utstyr - hardplast","C4060557"]
[8871222,"Tildekning for travers 36,6 kV AUS utstyr - hardplast","M4933"]
[8871223,"Faseslange 1,35m 26,5 kV med skjøt AUS utstyr - gummi","C4060308"]
[8871224,"Tildekning for sikring i luftanlegg 26,4 kV AUS utstyr - hardplast","C4060009"]
[8871225,"Hjelpetravers 3 meter lang for kran eller liftbom","C4000744"]
[8871226,"Tildekning for piggisolator 26,4 kV AUS utstyr - hardplast","C4060182L"]
[8871227,"Tildekning for strekkisolator 26,4 kV AUS utstyr - hardplast","C4060164"]
[8872610,"Stolpelås for isolerskjerm for stolper","C4060547"]
[8872627,"Fuktfjernerserviett i kassett på 50 stk","C4002538"]
[8872628,"Silikonserviett i kassett på 50 stk","C4002568"]
[8874022,"Reparasjonssett for Epoxiglass betjeningsstenger (stk=eske med 4 stk)","H1917"]
[8874024,"Glansfornyer","C4001520"]
[8880183,"Isolerskjerm for stolper 1,80m - 30cm i diameter 36,6 kV - hardplast","C4060000"]
[8880184,"Isolerskjerm for stolper 1,80m - 23cm i diameter 36,6 kV - hardplast","PSC4060699"]
[8880185,"Isolerskjerm for stolper 1,80m - 30cm i diameter 36,6 kV - hardplast","PSC4060704"]
[8880191,"Faseslange 1,5m 26,4 kV med feste for klostang - hardplast\n","C4060181GA"]
[8880192,"Magnet knapp for AUS matter","PSC4060759"]
[8880193,"2 sidig knapp for AUS matter","PSC4060760"]
[8880194,"Gummikobler for faseslanger 36 kV","C4060340"]
[8880197,"Skjermtang med 150mm klembakke","C4032525"]
[8880200,"Festeklype for isolerduk\n","C4060530"]
[9303606,"Lineholder","PSCH46458006"]
[9303607,"Isolatorstang uten beslag","H45421"]
[9303608,"Hjelpetravers 3,1 meter lang for teleskopmast","PSC4000351001"]
[9303609,"Lineholder med trinse og feste","C4000690"]
[9303610,"Lineholder med trinse uten feste","C4000691"]
[9303611,"Isolator for 34,5 kV","M48057"]
[8871216,"Verktøyfeste for skiftenøkkel med ABC feste","PART F. M4455-6"]
[8871199,"Benslering for benslespiral med ABC feste"]
[9300335,"AUS teleskopmast"]
[8871174,"Futteral 2650 x 150 mm"]
[8871175,"Futteral 3400 x 200 mm"]
[8874019,"Silikonvoks i 155ml tuber","297095UKR"]
[8874025,"Tester for AUS betjeningsstenger og tau iht. IEC 60855-1 (100kV-30cm)",294695]
[1835693,"Renseserviett 30stk i eske for isolerstenger og AUS utstyr","S-1"]
[1835696,"Renseserviett 72stk i dispenser boks for rengjøring av AUS utstyr","RBG-D72"]
[1835697,"Rensespray for rengjøring av AUS utstyr","RBG-35LR"]
[1835698,"Påfyll flaske 3,8 liter for rensespray","RBG-128"]
[1835699,"Påfyll spann 18,9 liter for rensespray","RBG-640"]